fUST/lending_fUST_20250812
["ID","MTS","AMOUNT","RATE_DAILY","PERIOD"]
[378625490,1754929848007,-531.77,0.00019178,2]
[378625492,1754929848017,-1556.77,0.00019178,2]
[378625494,1754929848026,-460.0,0.00019178,2]
[378625496,1754929848035,-1556.77,0.00019178,2]
[378625498,1754929848044,-460.0,0.00019178,2]
[378625500,1754929848054,-460.0,0.00019178,2]
[378625502,1754929848064,-1556.77,0.00019178,2]
[378625504,1754929848073,-1556.77,0.00019178,2]
[378625505,1754929848082,-1556.77,0.00019178,2]
[378625507,1754929848091,-460.0,0.00019178,2]
[378625509,1754929848101,-1556.77,0.00019178,2]
[378625511,1754929848110,-1556.77,0.00019178,2]
[378625513,1754929848120,-1556.86824995,0.00019178,2]
[378625515,1754929848129,-460.0,0.00019178,2]
[378625517,1754929848139,-460.0,0.00019178,2]
[378625519,1754929848148,-460.0,0.00019178,2]
[378625521,1754929848158,-460.0,0.00019178,2]
[378625523,1754929848169,-10944.32,0.00019178,2]
[378625525,1754929848178,-206.81897083,0.00019178,2]
[378625527,1754929848188,-460.0,0.00019178,2]
[378625529,1754929848198,-460.0,0.00019178,2]
[378625531,1754929848207,-460.0,0.00019178,2]
[378625533,1754929848217,-2727.78,0.00019178,2]
[378625535,1754929848227,-3928.03,0.00019178,2]
[378625537,1754929848236,-462.38926379,0.00019178,2]
[378625539,1754929848246,-460.0,0.00019178,2]
[378625541,1754929848255,-2006.14,0.00019178,2]
[378625543,1754929848265,-460.0,0.00019178,2]
[378625545,1754929848274,-1648.21,0.00019178,2]
[378625547,1754929848284,-460.0,0.00019178,2]
[378625549,1754929848293,-460.0,0.00019178,2]
[378625551,1754929848303,-460.0,0.00019178,2]
[378625553,1754929848313,-460.0,0.00019178,2]
[378625555,1754929848323,-460.0,0.00019178,2]
[378625557,1754929848332,-460.0,0.00019178,2]
[378625559,1754929848342,-460.0,0.00019178,2]
[378625561,1754929848352,-638.37,0.00019178,2]
[378625563,1754929848361,-460.0,0.00019178,2]
[378625565,1754929848370,-460.0,0.00019178,2]
[378625567,1754929848380,-460.0,0.00019178,2]
[378625569,1754929848392,-460.0,0.00019178,2]
[378625571,1754929848403,-1035.82,0.00019178,2]
[378625573,1754929848413,-495.74,0.00019178,2]
[378625575,1754929848422,-460.0,0.00019178,2]
[378625577,1754929848432,-460.0,0.00019178,2]
[378625579,1754929848442,-460.0,0.00019178,2]
[378625581,1754929848452,-460.0,0.00019178,2]
[378625583,1754929848461,-961.69,0.00019178,2]
[378625585,1754929848472,-460.0,0.00019178,2]
[378625587,1754929848482,-460.0,0.00019178,2]
[378625589,1754929848493,-460.0,0.00019178,2]
[378625591,1754929848502,-460.0,0.00019178,2]
[378625593,1754929848511,-369.76879548,0.00019178,2]
[378625595,1754929848520,-460.0,0.00019178,2]
[378625597,1754929848530,-460.0,0.00019178,2]
[378625599,1754929848540,-460.0,0.00019178,2]
[378625601,1754929848550,-460.0,0.00019178,2]
[378625603,1754929848559,-460.0,0.00019178,2]
[378625605,1754929848570,-460.0,0.00019178,2]
[378625607,1754929848579,-460.0,0.00019178,2]
[378625609,1754929848589,-460.0,0.00019178,2]
[378625611,1754929848598,-460.0,0.00019178,2]
[378625613,1754929848608,-460.0,0.00019178,2]
[378625615,1754929848617,-460.0,0.00019178,2]
[378625617,1754929848627,-477.73,0.00019178,2]
[378625619,1754929848637,-1365.01,0.00019178,2]
[378625621,1754929848645,-460.0,0.00019178,2]
[378625623,1754929848656,-460.0,0.00019178,2]
[378625625,1754929848665,-460.0,0.00019178,2]
[378625627,1754929848675,-460.0,0.00019178,2]
[378625629,1754929848685,-460.0,0.00019178,2]
[378625631,1754929848695,-460.0,0.00019178,2]
[378625633,1754929848704,-460.0,0.00019178,2]
[378625635,1754929848714,-460.0,0.00019178,2]
[378625637,1754929848724,-460.0,0.00019178,2]
[378625639,1754929848734,-460.0,0.00019178,2]
[378625641,1754929848743,-460.0,0.00019178,2]
[378625643,1754929848752,-460.0,0.00019178,2]
[378625645,1754929848761,-460.0,0.00019178,2]
[378625647,1754929848771,-460.0,0.00019178,2]
[378625649,1754929848781,-460.0,0.00019178,2]
[378625651,1754929848790,-550.39,0.00019178,2]
[378625653,1754929848800,-460.0,0.00019178,2]
[378625655,1754929848810,-419.57169461,0.00019178,2]
[378625657,1754929848819,-460.0,0.00019178,2]
[378625659,1754929848829,-593.26,0.00019178,2]
[378625661,1754929848839,-460.0,0.00019178,2]
[378625663,1754929848849,-460.0,0.00019178,2]
[378625665,1754929848859,-460.0,0.00019178,2]
[378625667,1754929848869,-460.0,0.00019178,2]
[378625669,1754929848879,-460.0,0.00019178,2]
[378625671,1754929848889,-1169.03,0.00019178,2]
[378625673,1754929848900,-2972.09,0.00019178,2]
[378625675,1754929848911,-3744.41,0.00019178,2]
[378625677,1754929848921,-4168.05,0.00019178,2]
[378625679,1754929848930,-2507.09,0.00019178,2]
[378625681,1754929848940,-460.0,0.00019178,2]
[378625683,1754929848950,-692.1,0.00019178,2]
[378625685,1754929848959,-460.0,0.00019178,2]
[378625687,1754929848969,-460.0,0.00019178,2]
[378625689,1754929848979,-1135.46,0.00019178,2]
[378625691,1754929848989,-1883.61,0.00019178,2]
[378625693,1754929849000,-460.0,0.00019178,2]
[378625695,1754929849011,-993.25,0.00019178,2]
[378625697,1754929849021,-460.0,0.00019178,2]
[378625699,1754929849031,-460.0,0.00019178,2]
[378625701,1754929849040,-460.0,0.00019178,2]
[378625703,1754929849050,-460.0,0.00019178,2]
[378625705,1754929849060,-460.0,0.00019178,2]
[378625707,1754929849070,-460.0,0.00019178,2]
[378625709,1754929849080,-523.13,0.00019178,2]
[378625711,1754929849090,-460.0,0.00019178,2]
[378625713,1754929849100,-460.0,0.00019178,2]
[378625715,1754929849110,-460.0,0.00019178,2]
[378625717,1754929849120,-460.0,0.00019178,2]
[378625719,1754929849130,-460.0,0.00019178,2]
[378625721,1754929849140,-460.0,0.00019178,2]
[378625723,1754929849149,-460.0,0.00019178,2]
[378625725,1754929849160,-460.0,0.00019178,2]
[378625727,1754929849169,-460.0,0.00019178,2]
[378625729,1754929849179,-460.0,0.00019178,2]
[378625731,1754929849188,-460.0,0.00019178,2]
[378625733,1754929849198,-460.0,0.00019178,2]
[378625735,1754929849207,-699.63,0.00019178,2]
[378625737,1754929849216,-460.0,0.00019178,2]
[378625739,1754929849226,-183.14996323,0.00019178,2]
[378625741,1754929849235,-460.0,0.00019178,2]
[378625743,1754929849244,-555.13,0.00019178,2]
[378625745,1754929849254,-460.0,0.00019178,2]
[378625747,1754929849263,-460.0,0.00019178,2]
[378625749,1754929849273,-460.0,0.00019178,2]
[378625751,1754929849282,-460.0,0.00019178,2]
[378625753,1754929849291,-460.0,0.00019178,2]
[378625755,1754929849301,-1000.0,0.00019178,2]
[378625757,1754929849310,-460.0,0.00019178,2]
[378625759,1754929849319,-460.0,0.00019178,2]
[378625761,1754929849328,-460.0,0.00019178,2]
[378625763,1754929849337,-678.93,0.00019178,2]
[378625765,1754929849346,-387.79022982,0.00019178,2]
[378625767,1754929849357,-460.0,0.00019178,2]
[378625769,1754929849367,-460.0,0.00019178,2]
[378625771,1754929849377,-1277.34,0.00019178,2]
[378625773,1754929849389,-763.98,0.00019178,2]
[378625775,1754929849402,-3185.17,0.00019178,2]
[378625777,1754929849411,-460.0,0.00019178,2]
[378625779,1754929849420,-460.0,0.00019178,2]
[378625781,1754929849429,-460.0,0.00019178,2]
[378625783,1754929849440,-460.0,0.00019178,2]
[378625785,1754929849449,-500.0,0.00019178,2]
[378625787,1754929849460,-500.0,0.00019178,2]
[378625789,1754929849471,-151.04937474,0.00019178,2]
[378625791,1754929849483,-460.0,0.00019178,2]
[378625793,1754929849492,-460.0,0.00019178,2]
[378625795,1754929849501,-460.0,0.00019178,2]
[378625797,1754929849510,-460.0,0.00019178,2]
[378625799,1754929849519,-460.0,0.00019178,2]
[378625801,1754929849529,-460.0,0.00019178,2]
[378625803,1754929849538,-460.0,0.00019178,2]
[378625805,1754929849547,-460.0,0.00019178,2]
[378625807,1754929849556,-463.91655385,0.00019178,2]
[378625809,1754929849566,-460.0,0.00019178,2]
[378625811,1754929849576,-460.0,0.00019178,2]
[378625813,1754929849585,-1475.24,0.00019178,2]
[378625815,1754929849595,-460.0,0.00019178,2]
[378625817,1754929849604,-460.0,0.00019178,2]
[378625819,1754929849613,-460.0,0.00019178,2]
[378625821,1754929849622,-460.0,0.00019178,2]
[378625823,1754929849632,-460.0,0.00019178,2]
[378625825,1754929849641,-2037.55,0.00019178,2]
[378625827,1754929849651,-460.0,0.00019178,2]
[378625829,1754929849660,-460.0,0.00019178,2]
[378625831,1754929849670,-742.83,0.00019178,2]
[378625833,1754929849679,-460.0,0.00019178,2]
[378625835,1754929849688,-460.0,0.00019178,2]
[378625837,1754929849698,-584.16,0.00019178,2]
[378625839,1754929849708,-500.0,0.00019178,2]
[378625841,1754929849718,-1295.6,0.00019178,2]
[378625843,1754929849727,-500.0,0.00019178,2]
[378625845,1754929849736,-508.35296366,0.00019178,2]
[378625847,1754929849746,-626.62,0.00019178,2]
[378625849,1754929849755,-626.62,0.00019178,2]
[378625851,1754929849764,-626.62,0.00019178,2]
[378625858,1754929849817,-626.62,0.00019178,2]
[378625860,1754929849827,-626.62,0.00019178,2]
[378625862,1754929849836,-626.62,0.00019178,2]
[378625863,1754929849845,-626.62,0.00019178,2]
[378625864,1754929849855,-626.62,0.00019178,2]
[378625865,1754929849864,-626.62,0.00019178,2]
[378625866,1754929849873,-626.62,0.00019178,2]
[378625867,1754929849881,-460.0,0.00019178,2]
[378625868,1754929849890,-626.62,0.00019178,2]
[378625869,1754929849900,-626.62,0.00019178,2]
[378625870,1754929849909,-1156.74,0.00019178,2]
[378625871,1754929849918,-626.62,0.00019178,2]
[378625873,1754929849927,-626.62,0.00019178,2]
[378625875,1754929849937,-626.62,0.00019178,2]
[378625877,1754929849947,-626.62,0.00019178,2]
[378625879,1754929849956,-789.8,0.00019178,2]
[378625881,1754929849965,-626.62,0.00019178,2]
[378625883,1754929849974,-460.0,0.00019178,2]
[378625885,1754929849983,-789.8,0.00019178,2]
[378625887,1754929849992,-626.62,0.00019178,2]
[378625889,1754929850002,-460.0,0.00019178,2]
[378625891,1754929850011,-789.8,0.00019178,2]
[378625893,1754929850020,-626.62,0.00019178,2]
[378625895,1754929850030,-789.8,0.00019178,2]
[378625897,1754929850038,-626.62,0.00019178,2]
[378625899,1754929850048,-789.8,0.00019178,2]
[378625901,1754929850057,-626.62,0.00019178,2]
[378625903,1754929850066,-626.62,0.00019178,2]
[378625905,1754929850075,-626.62,0.00019178,2]
[378625907,1754929850085,-626.74,0.00019178,2]
[378625909,1754929850094,-789.8,0.00019178,2]
[378625911,1754929850103,-789.8,0.00019178,2]
[378625913,1754929850112,-789.8,0.00019178,2]
[378625915,1754929850121,-789.8,0.00019178,2]
[378625917,1754929850130,-460.0,0.00019178,2]
[378625919,1754929850139,-460.0,0.00019178,2]
[378625921,1754929850150,-460.0,0.00019178,2]
[378625923,1754929850159,-789.8,0.00019178,2]
[378625925,1754929850168,-789.8,0.00019178,2]
[378625927,1754929850176,-789.8,0.00019178,2]
[378625929,1754929850185,-789.8,0.00019178,2]
[378625931,1754929850194,-789.8,0.00019178,2]
[378625933,1754929850203,-789.8,0.00019178,2]
[378625935,1754929850212,-789.8,0.00019178,2]
[378625937,1754929850221,-789.8,0.00019178,2]
[378625939,1754929850230,-460.0,0.00019178,2]
[378625941,1754929850239,-789.8,0.00019178,2]
[378625943,1754929850248,-789.8,0.00019178,2]
[378625945,1754929850257,-460.0,0.00019178,2]
[378625947,1754929850265,-1149.55,0.00019178,2]
[378625949,1754929850274,-789.8,0.00019178,2]
[378625951,1754929850283,-460.0,0.00019178,2]
[378625953,1754929850292,-789.8,0.00019178,2]
[378625955,1754929850301,-789.8,0.00019178,2]
[378625957,1754929850310,-460.0,0.00019178,2]
[378625959,1754929850320,-789.8,0.00019178,2]
[378625961,1754929850329,-789.83,0.00019178,2]
[378625963,1754929850338,-685.55,0.00019178,2]
[378625965,1754929850347,-665.41,0.00019178,2]
[378625967,1754929850356,-460.0,0.00019178,2]
[378625969,1754929850365,-460.0,0.00019178,2]
[378625971,1754929850374,-511.8,0.00019178,2]
[378625973,1754929850384,-460.0,0.00019178,2]
[378625975,1754929850397,-460.0,0.00019178,2]
[378625977,1754929850406,-370.32153492,0.00019178,2]
[378625979,1754929850415,-460.0,0.00019178,2]
[378625981,1754929850425,-1197.87,0.00019178,2]
[378625983,1754929850434,-460.0,0.00019178,2]
[378625985,1754929850443,-460.0,0.00019178,2]
[378625987,1754929850453,-1146.74,0.00019178,2]
[378625989,1754929850462,-460.0,0.00019178,2]
[378625991,1754929850472,-1039.17,0.00019178,2]
[378625993,1754929850482,-460.0,0.00019178,2]
[378625995,1754929850491,-460.0,0.00019178,2]
[378625997,1754929850500,-460.0,0.00019178,2]
[378625999,1754929850510,-460.0,0.00019178,2]
[378626001,1754929850519,-460.0,0.00019178,2]
[378626003,1754929850528,-188.11005684,0.00019178,2]
[378626005,1754929850537,-460.0,0.00019178,2]
[378626007,1754929850546,-515.41380788,0.00019178,2]
[378626009,1754929850555,-594.05,0.00019178,2]
[378626011,1754929850564,-466.36908823,0.00019178,2]
[378626013,1754929850573,-460.0,0.00019178,2]
[378626015,1754929850582,-685.02,0.00019178,2]
[378626017,1754929850591,-460.0,0.00019178,2]
[378626019,1754929850600,-460.0,0.00019178,2]
[378626021,1754929850609,-460.0,0.00019178,2]
[378626023,1754929850618,-460.0,0.00019178,2]
[378626025,1754929850627,-1062.17,0.00019178,2]
[378626027,1754929850636,-296.12781119,0.00019178,2]
[378626029,1754929850645,-460.0,0.00019178,2]
[378626031,1754929850655,-591.63606736,0.00019178,2]
[378626033,1754929850665,-580.7,0.00019178,2]
[378626036,1754929850674,-460.0,0.00019178,2]
[378626037,1754929850684,-460.0,0.00019178,2]
[378626039,1754929850693,-368.27730857,0.00019178,2]
[378626042,1754929850703,-460.0,0.00019178,2]
[378626043,1754929850712,-469.7619666,0.00019178,2]
[378626045,1754929850722,-471.59005621,0.00019178,2]
[378626047,1754929850730,-674.15,0.00019178,2]
[378626049,1754929850739,-463.18,0.00019178,2]
[378626051,1754929850749,-1165.61,0.00019178,2]
[378626053,1754929850758,-460.0,0.00019178,2]
[378626055,1754929850767,-4657.82,0.00019178,2]
[378626057,1754929850776,-460.0,0.00019178,2]
[378626059,1754929850786,-2141.63,0.00019178,2]
[378626061,1754929850795,-465.8770543,0.00019178,2]
[378626063,1754929850805,-460.0,0.00019178,2]
[378626065,1754929850814,-460.0,0.00019178,2]
[378626068,1754929850823,-460.0,0.00019178,2]
[378626070,1754929850833,-460.0,0.00019178,2]
[378626072,1754929850842,-800.56,0.00019178,2]
[378626074,1754929850851,-460.0,0.00019178,2]
[378626076,1754929850860,-460.0,0.00019178,2]
[378626078,1754929850870,-460.0,0.00019178,2]
[378626080,1754929850879,-460.0,0.00019178,2]
[378626082,1754929850887,-460.0,0.00019178,2]
[378626084,1754929850897,-2483.4,0.00019178,2]
[378626086,1754929850907,-460.0,0.00019178,2]
[378626088,1754929850916,-534.89,0.00019178,2]
[378626090,1754929850925,-460.0,0.00019178,2]
[378626092,1754929850934,-437.73518619,0.00019178,2]
[378626094,1754929850943,-460.0,0.00019178,2]
[378626096,1754929850952,-460.0,0.00019178,2]
[378626098,1754929850961,-460.0,0.00019178,2]
[378626100,1754929850970,-460.0,0.00019178,2]
[378626102,1754929850980,-460.0,0.00019178,2]
[378626104,1754929850989,-460.0,0.00019178,2]
[378626106,1754929850997,-460.0,0.00019178,2]
[378626107,1754929851007,-2259.42,0.00019178,2]
[378626110,1754929851016,-601.52,0.00019178,2]
[378626112,1754929851026,-460.0,0.00019178,2]
[378626114,1754929851035,-460.0,0.00019178,2]
[378626116,1754929851044,-500.11733005,0.00019178,2]
[378626118,1754929851056,-460.0,0.00019178,2]
[378626120,1754929851065,-460.0,0.00019178,2]
[378626122,1754929851074,-460.69784821,0.00019178,2]
[378626124,1754929851082,-460.0,0.00019178,2]
[378626126,1754929851092,-460.0,0.00019178,2]
[378626128,1754929851100,-460.0,0.00019178,2]
[378626130,1754929851109,-460.0,0.00019178,2]
[378626132,1754929851118,-613.49,0.00019178,2]
[378626134,1754929851127,-460.0,0.00019178,2]
[378626136,1754929851136,-824.27,0.00019178,2]
[378626138,1754929851144,-460.0,0.00019178,2]
[378626140,1754929851155,-460.0,0.00019178,2]
[378626142,1754929851164,-3314.58,0.00019178,2]
[378626144,1754929851174,-460.0,0.00019178,2]
[378626146,1754929851183,-460.0,0.00019178,2]
[378626148,1754929851192,-460.0,0.00019178,2]
[378626150,1754929851202,-2114.33,0.00019178,2]
[378626152,1754929851212,-460.0,0.00019178,2]
[378626154,1754929851221,-460.0,0.00019178,2]
[378626156,1754929851230,-518.04767297,0.00019178,2]
[378626158,1754929851238,-814.99,0.00019178,2]
[378626160,1754929851247,-460.0,0.00019178,2]
[378626162,1754929851256,-460.0,0.00019178,2]
[378626164,1754929851264,-460.0,0.00019178,2]
[378626166,1754929851273,-460.0,0.00019178,2]
[378626168,1754929851282,-460.0,0.00019178,2]
[378626169,1754929851292,-460.0,0.00019178,2]
[378626172,1754929851301,-460.0,0.00019178,2]
[378626174,1754929851310,-460.0,0.00019178,2]
[378626176,1754929851319,-460.0,0.00019178,2]
[378626177,1754929851329,-460.0,0.00019178,2]
[378626179,1754929851338,-460.0,0.00019178,2]
[378626181,1754929851348,-460.0,0.00019178,2]
[378626183,1754929851357,-460.0,0.00019178,2]
[378626185,1754929851367,-460.0,0.00019178,2]
[378626187,1754929851376,-584.22,0.00019178,2]
[378626189,1754929851386,-460.0,0.00019178,2]
[378626191,1754929851402,-361.89782764,0.00019178,2]
[378626193,1754929851412,-460.0,0.00019178,2]
[378626195,1754929851422,-460.0,0.00019178,2]
[378626198,1754929851431,-1307.18,0.00019178,2]
[378626200,1754929851443,-666.0,0.00019178,2]
[378626202,1754929851453,-5000.0,0.00019178,2]
[378626204,1754929851462,-2465.54013957,0.00019178,2]
[378626205,1754929851474,-500.0,0.00019181,2]
[378626207,1754929851485,-1760.0,0.00019212,2]
[378626209,1754929851494,-1760.0,0.00019212,2]
[378626211,1754929851504,-515.0,0.00019243,2]
[378626213,1754929851514,-1579.0,0.00019275,2]
[378626215,1754929851523,-302.8788636,0.00019278,2]
[378626217,1754929851532,-515.0,0.00019299,2]
[378626219,1754929851541,-1579.0,0.00019326,2]
[378626221,1754929851550,-553.263226,0.00019329,2]
[378626223,1754929851559,-553.263226,0.00019329,2]
[378626225,1754929851568,-151.0,0.00019329,2]
[378626227,1754929851577,-151.0,0.00019329,2]
[378626229,1754929851586,-151.0,0.00019329,2]
[378626231,1754929851595,-151.0,0.00019329,2]
[378626233,1754929851604,-151.0,0.00019329,2]
[378626235,1754929851613,-582.286956,0.00019329,2]
[378626237,1754929851622,-151.0,0.00019329,2]
[378626239,1754929851631,-582.286956,0.00019329,2]
[378626241,1754929851641,-477.720042,0.00019329,2]
[378626243,1754929851651,-165.920159,0.00019329,2]
[378626245,1754929851660,-477.720042,0.00019329,2]
[378626247,1754929851669,-165.920159,0.00019329,2]
[378626249,1754929851680,-151.0,0.00019329,2]
[378626251,1754929851694,-761.754598,0.00019329,2]
[378626253,1754929851703,-761.754598,0.00019329,2]
[378626256,1754929851713,-1079.08299,0.00019329,2]
[378626258,1754929851722,-1079.08299,0.00019329,2]
[378626260,1754929851731,-178.302661,0.00019329,2]
[378626262,1754929851739,-178.302661,0.00019329,2]
[378626264,1754929851748,-100000.0,0.00019329,2]
[378626266,1754929851758,-151.0,0.00019352,2]
[378626267,1754929851768,-464.548444,0.00019352,2]
[378626269,1754929851777,-464.548444,0.00019352,2]
[378626271,1754929851786,-908.43549506,0.00019352,2]
[378626273,1754929851795,-515.0,0.00019353,2]
[378626275,1754929851804,-151.0,0.000194,2]
[378626277,1754929851814,-151.210671,0.0001941,2]
[378626279,1754929851823,-272.826563,0.0001941,2]
[378626282,1754929851832,-272.826563,0.0001941,2]
[378626284,1754929851841,-1579.0,0.0001941,2]
[378626286,1754929851850,-878.0,0.00019415,2]
[378626288,1754929851860,-527.9539256,0.00019427,2]
[378626290,1754929851869,-160.0,0.00019427,2]
[378626292,1754929851878,-160.0,0.00019427,2]
[378626294,1754929851887,-160.0,0.00019428,2]
[378626296,1754929851897,-160.0,0.00019428,2]
[378626298,1754929851907,-160.0,0.00019428,2]
[378626299,1754929851917,-216.68257536,0.00019428,2]
[378626301,1754929851926,-160.0,0.00019428,2]
[378626304,1754929851936,-160.0,0.00019428,2]
[378626306,1754929851946,-12671.21867243,0.00019428,2]
[378626308,1754929851957,-160.0,0.00019428,2]
[378626310,1754929851967,-231.9940742,0.00019428,2]
[378626312,1754929851976,-461.69158338,0.00019428,2]
[378626314,1754929851986,-843.18994796,0.00019428,2]
[378626315,1754929851996,-417.15472785,0.00019428,2]
[378626318,1754929852007,-215.4905783,0.00019428,2]
[378626320,1754929852017,-155.57098955,0.00019441,2]
[378626322,1754929852026,-151.0,0.00019441,2]
[378626324,1754929852037,-151.0,0.00019441,2]
[378626326,1754929852046,-151.0,0.00019441,2]
[378626328,1754929852055,-606.19746771,0.00019441,2]
[378626330,1754929852065,-151.0,0.00019441,2]
[378626332,1754929852074,-500.0,0.00019441,2]
[378626334,1754929852084,-151.0,0.00019441,2]
[378626336,1754929852093,-151.0,0.00019441,2]
[378626338,1754929852103,-500.0,0.00019441,2]
[378626340,1754929852112,-151.0,0.00019441,2]
[378626342,1754929852122,-151.0,0.00019441,2]
[378626344,1754929852132,-198.0,0.00019447,2]
[378626346,1754929852142,-151.0,0.00019452,2]
[378626347,1754929852152,-151.0,0.00019452,2]
[378626349,1754929852161,-151.0,0.00019452,2]
[378626351,1754929852170,-151.0,0.00019452,2]
[378626353,1754929852180,-151.0,0.00019452,2]
[378626355,1754929852189,-464.548444,0.00019452,2]
[378626357,1754929852198,-464.548444,0.00019452,2]
[378626359,1754929852208,-445.47315161,0.00019452,2]
[378626362,1754929852218,-460.0,0.00019452,2]
[378626364,1754929852227,-460.0,0.00019452,2]
[378626366,1754929852236,-460.0,0.00019452,2]
[378626368,1754929852246,-151.0,0.00019452,2]
[378626370,1754929852255,-460.0,0.00019452,2]
[378626372,1754929852264,-460.78191841,0.00019452,2]
[378626374,1754929852273,-500.90729538,0.00019452,2]
[378626376,1754929852282,-460.06541847,0.00019452,2]
[378626378,1754929852291,-151.0,0.00019452,2]
[378626380,1754929852301,-367.63487547,0.00019452,2]
[378626382,1754929852310,-289.765563,0.00019452,2]
[378626384,1754929852320,-637.97,0.00019452,2]
[378626386,1754929852329,-460.0,0.00019452,2]
[378626388,1754929852338,-460.0,0.00019452,2]
[378626390,1754929852347,-460.0,0.00019452,2]
[378626392,1754929852356,-460.0,0.00019452,2]
[378626393,1754929852365,-460.0,0.00019452,2]
[378626395,1754929852376,-460.0,0.00019452,2]
[378626397,1754929852385,-460.0,0.00019452,2]
[378626399,1754929852399,-151.0,0.00019452,2]
[378626401,1754929852408,-460.0,0.00019452,2]
[378626404,1754929852417,-460.0,0.00019452,2]
[378626405,1754929852427,-460.0,0.00019452,2]
[378626408,1754929852436,-151.0,0.00019452,2]
[378626409,1754929852446,-460.0,0.00019452,2]
[378626411,1754929852455,-460.0,0.00019452,2]
[378626413,1754929852465,-460.0,0.00019452,2]
[378626415,1754929852474,-460.0,0.00019452,2]
[378626417,1754929852485,-179.306011,0.00019452,2]
[378626420,1754929852494,-460.0,0.00019452,2]
[378626422,1754929852503,-179.306011,0.00019452,2]
[378626424,1754929852513,-460.0,0.00019452,2]
[378626426,1754929852525,-151.0,0.00019452,2]
[378626428,1754929852535,-460.0,0.00019452,2]
[378626430,1754929852544,-460.0,0.00019452,2]
[378626432,1754929852553,-460.0,0.00019452,2]
[378626434,1754929852562,-460.0,0.00019452,2]
[378626436,1754929852571,-460.0,0.00019452,2]
[378626438,1754929852580,-461.74789151,0.00019452,2]
[378626440,1754929852589,-460.0,0.00019452,2]
[378626442,1754929852598,-460.0,0.00019452,2]
[378626444,1754929852608,-460.0,0.00019452,2]
[378626446,1754929852617,-151.0,0.00019452,2]
[378626448,1754929852626,-460.0,0.00019452,2]
[378626450,1754929852635,-460.0,0.00019452,2]
[378626452,1754929852644,-151.0,0.00019452,2]
[378626454,1754929852654,-460.0,0.00019452,2]
[378626456,1754929852663,-460.0,0.00019452,2]
[378626458,1754929852673,-460.54895777,0.00019452,2]
[378626460,1754929852683,-501.54918664,0.00019452,2]
[378626462,1754929852692,-471.50981979,0.00019452,2]
[378626464,1754929852701,-460.0,0.00019452,2]
[378626466,1754929852711,-460.0,0.00019452,2]
[378626468,1754929852720,-460.0,0.00019452,2]
[378626470,1754929852730,-460.0,0.00019452,2]
[378626472,1754929852739,-460.0,0.00019452,2]
[378626474,1754929852748,-554.2849335,0.00019452,2]
[378626476,1754929852758,-460.0,0.00019452,2]
[378626478,1754929852767,-460.0,0.00019452,2]
[378626480,1754929852777,-460.0,0.00019452,2]
[378626482,1754929852787,-460.0,0.00019452,2]
[378626484,1754929852798,-461.61370413,0.00019452,2]